bitfinex/quotes_SOLUSD_20241231
["timestamp","ask_amount","ask_price","bid_price","bid_amount"]
[1735657855305,1.72012741,197.73,197.6,2.341]
[1735657855479,20.0,197.69,197.6,2.341]
[1735657856596,20.0,197.65,197.57,11.1819]
[1735657856787,20.0,197.65,197.58,2.341]
[1735657857590,1.72012741,197.73,197.6,2.341]
[1735657858607,20.0,197.69,197.6,2.341]
[1735657860202,20.0,197.69,197.58,5.0]
[1735657860203,20.0,197.65,197.58,7.341]
[1735657860991,20.0,197.65,197.59,2.341]
[1735657861197,20.0,197.65,197.58,7.341]
[1735657861412,20.0,197.65,197.59,7.341]
[1735657861600,1.72012741,197.73,197.62,5.0]
[1735657861796,23.776884,197.72,197.62,5.0]
[1735657861999,20.0,197.69,197.62,5.0]
[1735657862203,23.776884,197.72,197.62,5.0]
[1735657862503,20.0,197.69,197.62,7.341]
[1735657862811,20.271615,197.77,197.63,7.341]
[1735657863298,43.776884,197.73,197.63,5.0]
[1735657863502,43.776884,197.73,197.59,2.341]
[1735657864012,43.776884,197.73,197.58,5.0]
[1735657864389,43.776884,197.73,197.58,7.341]
[1735657864613,43.776884,197.73,197.58,5.0]
[1735657865604,43.776884,197.73,197.58,7.341]
[1735657866201,4.52598206,197.76,197.62,2.341]
[1735657866391,20.271615,197.77,197.64,7.341]
[1735657866596,1.6246,197.78,197.64,2.341]
[1735657866795,17.136981,197.78,197.65,7.341]
[1735657867104,20.0,197.75,197.66,2.341]
[1735657867615,20.0,197.73,197.67,2.341]
[1735657867827,15.512381,197.8,197.68,2.341]
[1735657868111,1.5713,197.82,197.7,2.341]
[1735657868316,7.74802408,197.86,197.69,5.0]
[1735657868317,15.512381,197.83,197.71,2.341]
[1735657868607,20.0,197.82,197.71,7.341]
[1735657868813,20.0,197.82,197.68,15.512381]
[1735657868814,20.0,197.83,197.68,7.341]
[1735657869528,23.776884,197.82,197.68,2.341]
[1735657870016,23.776884,197.78,197.67,8.603]
[1735657870221,20.0,197.75,197.67,8.603]
[1735657870395,20.0,197.75,197.67,6.262]
[1735657870891,20.0,197.71,197.67,6.262]
[1735657872187,7.74802408,197.82,197.67,6.262]
[1735657872393,20.0,197.78,197.67,6.262]
[1735657872592,20.0,197.68,197.67,6.262]
[1735657874495,20.0,197.69,197.61,6.5098]
[1735657874694,20.0,197.69,197.63,2.341]
[1735657874896,20.0,197.69,197.61,11.5098]
[1735657875104,20.0,197.69,197.61,13.8508]
[1735657875105,23.776884,197.68,197.61,13.8508]
[1735657875310,21.5808,197.77,197.61,13.8508]
[1735657875503,20.0,197.69,197.61,6.5098]
[1735657875707,20.0,197.65,197.61,13.8508]
[1735657875907,20.0,197.65,197.61,8.8508]
[1735657876105,20.0,197.65,197.61,6.5098]
[1735657876496,1.5808,197.77,197.61,8.8508]
[1735657876704,9.32882408,197.77,197.64,5.0]
[1735657876896,43.776884,197.73,197.64,5.0]
[1735657877094,43.776884,197.73,197.61,151.4508]
[1735657877307,43.776884,197.73,197.61,6.5098]
[1735657878623,2.659,197.72,197.61,6.5098]
[1735657878804,2.659,197.72,197.56,11.5098]
[1735657879009,51.52490808,197.73,197.57,2.341]
[1735657879208,56.06177276,197.73,197.57,7.341]
[1735657879515,20.0,197.67,197.57,5.0]
[1735657879896,20.0,197.63,197.57,5.0]
[1735657880310,20.0,197.63,197.59,2.341]
[1735657880501,4.53686468,197.69,197.6,7.341]
[1735657880902,23.776884,197.68,197.6,7.341]
[1735657881322,20.0,197.65,197.6,7.341]
[1735657882003,20.0,197.71,197.62,5.0]
[1735657882213,20.0,197.71,197.62,137.6]
[1735657882414,20.0,197.67,197.62,137.6]
[1735657882724,20.0,197.67,197.56,13.8508]
[1735657882725,20.0,197.63,197.57,7.341]
[1735657883102,43.776884,197.7,197.56,144.1098]
[1735657883405,43.776884,197.7,197.56,6.5098]
[1735657883406,51.52490808,197.7,197.56,6.5098]
[1735657884618,20.0,197.61,197.56,6.5098]
[1735657884816,20.0,197.61,197.56,8.8508]
[1735657885013,7.74802408,197.68,197.56,149.1098]
[1735657885227,43.776884,197.64,197.56,6.5098]
[1735657888423,43.776884,197.64,197.56,6.5098]
[1735657888617,43.776884,197.64,197.5,8.1127]
[1735657889227,20.0,197.59,197.5,8.1127]
[1735657889523,20.0,197.51,197.5,8.1127]
[1735657889728,20.0,197.51,197.5,6.5822]
[1735657890919,20.0,197.55,197.5,6.5822]
[1735657891529,23.776884,197.54,197.5,6.5822]
[1735657891830,20.0,197.51,197.5,6.5822]
[1735657892130,20.0,197.51,197.46,1.5305]
[1735657892305,20.0,197.47,197.46,1.5305]
[1735657892626,12.29773306,197.6,197.46,1.5305]
[1735657892844,20.0,197.53,197.47,5.0]
[1735657893517,43.776884,197.55,197.47,5.0]
[1735657895210,43.776884,197.55,197.47,7.341]
[1735657895407,43.776884,197.55,197.49,5.0]
[1735657895615,43.776884,197.55,197.48,5.0]
[1735657896031,43.776884,197.55,197.47,7.341]
[1735657896843,43.776884,197.55,197.47,2.341]
[1735657897133,43.776884,197.55,197.48,5.0]
[1735657897331,43.776884,197.55,197.49,2.341]
[1735657897838,43.776884,197.55,197.47,7.341]
[1735657898131,43.776884,197.55,197.46,141.4715]
[1735657898339,43.776884,197.55,197.46,139.1305]
[1735657898523,43.776884,197.55,197.46,141.4715]
[1735657899916,43.776884,197.55,197.46,3.8715]
[1735657900411,43.776884,197.55,197.46,1.5305]
[1735657900809,50.359084,197.55,197.46,1.5305]
[1735657904434,50.359084,197.55,197.45,6.5822]
[1735657904435,53.018084,197.55,197.45,6.5822]
[1735657904626,53.018084,197.55,197.41,1.5911]
[1735657904829,20.0,197.46,197.41,1.5911]
[1735657905337,20.0,197.42,197.41,1.5911]
[1735657908028,20.0,197.42,197.4,6.388]
[1735657908338,20.0,197.38,197.36,7.9791]
[1735657908645,23.776884,197.37,197.36,6.388]
[1735657908841,20.0,197.34,197.31,7.9791]
[1735657909231,23.776884,197.37,197.31,6.388]
[1735657909433,20.0,197.3,197.26,8.729]
[1735657910148,2.659,197.46,197.27,2.341]
[1735657910331,2.659,197.44,197.27,7.341]
[1735657910646,20.0,197.33,197.27,7.341]
[1735657910827,20.0,197.33,197.28,2.341]
[1735657911228,20.0,197.33,197.27,7.341]
[1735657911429,20.0,197.33,197.28,2.341]
[1735657912639,20.0,197.33,197.29,2.341]
[1735657913646,1.5571,197.47,197.31,7.341]
[1735657913848,4.49831536,197.48,197.35,8.0638]
[1735657914037,20.0,197.46,197.35,8.0638]
[1735657914241,20.0,197.38,197.35,8.0638]
[1735657914937,23.776884,197.47,197.35,8.0638]
[1735657915139,23.776884,197.49,197.35,8.0638]
[1735657915349,20.0,197.38,197.35,8.0638]
[1735657916155,23.776884,197.49,197.35,8.0638]
[1735657916647,20.0,197.38,197.35,8.0638]
[1735657917727,1.6524,197.52,197.38,2.341]
[1735657917933,4.3114,197.52,197.35,10.4048]
[1735657918140,4.3114,197.52,197.35,8.0638]
[1735657918141,20.0,197.45,197.35,8.0638]
[1735657918466,20.0,197.41,197.35,8.0638]
[1735657918635,20.0,197.41,197.36,5.0]
[1735657918829,20.0,197.41,197.35,8.0638]
[1735657919036,20.0,197.41,197.36,5.0]
[1735657919251,20.0,197.41,197.36,7.341]
[1735657919752,20.0,197.41,197.37,2.341]
[1735657920141,20.0,197.41,197.36,7.341]
[1735657920345,20.0,197.41,197.35,8.0638]
[1735657921055,20.0,197.41,197.36,2.341]
[1735657921752,20.0,197.41,197.37,7.341]
[1735657922058,20.0,197.41,197.36,2.341]
[1735657922443,21.6524,197.52,197.38,2.341]
[1735657922647,21.6524,197.52,197.38,7.341]
[1735657922943,20.0,197.48,197.36,2.341]
[1735657923864,20.0,197.48,197.38,2.341]
[1735657924057,20.0,197.48,197.38,5.0]
[1735657924360,20.0,197.48,197.36,2.341]
[1735657925359,20.0,197.48,197.38,2.341]
[1735657925558,6.5822,197.55,197.4,2.341]
[1735657925763,12.24579856,197.56,197.42,7.341]
[1735657926062,23.776884,197.52,197.43,6.5284]
[1735657926449,23.776884,197.53,197.43,6.5284]
[1735657926759,23.776884,197.56,197.44,1.5354]
[1735657926960,20.09662741,197.53,197.44,1.5354]
[1735657927458,0.09662741,197.53,197.46,2.341]
[1735657927765,0.09662741,197.59,197.49,5.0]
[1735657928153,23.87351141,197.59,197.49,7.341]
[1735657928355,23.87351141,197.59,197.5,5.0]
[1735657928565,20.0,197.56,197.5,5.0]
[1735657929062,0.09662741,197.59,197.5,5.0]
[1735657929262,0.09662741,197.59,197.52,5.0]
[1735657929756,20.09662741,197.59,197.52,5.0]
[1735657930156,0.09662741,197.59,197.52,5.0]
[1735657930356,0.09662741,197.59,197.51,6.3161]
[1735657933173,20.09662741,197.59,197.51,6.3161]
[1735657933551,20.0,197.55,197.51,6.3161]
[1735657933981,20.0,197.55,197.52,5.0]
[1735657934875,0.09662741,197.59,197.52,5.0]
[1735657935381,20.0,197.58,197.52,5.0]
[1735657935878,0.09662741,197.59,197.51,6.3161]
[1735657936271,0.09662741,197.59,197.51,11.3161]
[1735657936449,0.09662741,197.59,197.51,6.3161]
[1735657936649,0.09662741,197.59,197.51,11.3161]
[1735657937049,0.09662741,197.59,197.51,13.6571]
[1735657937250,0.09662741,197.59,197.52,5.0]
[1735657937756,0.09662741,197.59,197.51,6.3161]
[1735657938085,20.09662741,197.59,197.51,6.3161]
[1735657938419,20.0,197.51,197.46,6.3161]
[1735657940682,20.0,197.51,197.46,11.3161]
[1735657941360,20.0,197.51,197.48,2.341]
[1735657941562,20.0,197.51,197.49,5.0]
[1735657941764,20.0,197.51,197.49,4.4]
[1735657942882,20.0,197.51,197.37,2.341]
[1735657943085,12.74802408,197.59,197.43,2.341]
[1735657943263,20.0,197.56,197.43,2.341]
[1735657943462,7.74802408,197.59,197.46,2.341]
[1735657943773,23.776884,197.56,197.47,1.5025]
[1735657944081,43.776884,197.53,197.48,6.1134]
[1735657944260,7.74802408,197.57,197.48,6.1134]
[1735657944460,23.776884,197.56,197.48,8.4544]
[1735657944880,20.0,197.53,197.48,8.4544]
[1735657945080,20.0,197.53,197.48,6.1134]
[1735657945866,20.0,197.53,197.49,2.341]
[1735657946075,7.74802408,197.59,197.5,2.341]
[1735657946288,23.776884,197.58,197.49,2.341]
[1735657946488,20.0,197.55,197.48,8.4544]
[1735657946885,20.0,197.55,197.51,2.341]
[1735657947274,20.0,197.55,197.5,2.341]
[1735657947764,23.776884,197.6,197.51,2.341]
[1735657947972,7.74802408,197.63,197.51,2.341]
[1735657948192,0.09662741,197.6,197.53,2.341]
[1735657948585,0.09662741,197.6,197.52,2.341]
[1735657948779,0.09662741,197.6,197.48,6.1134]
[1735657948780,0.09662741,197.6,197.53,2.341]
[1735657948981,20.0,197.56,197.53,2.341]
[1735657949207,23.776884,197.55,197.48,6.1134]
[1735657949734,20.0,197.57,197.48,8.4544]
[1735657949904,20.0,197.62,197.52,2.341]
[1735657950207,20.0,197.58,197.51,2.341]
[1735657950375,20.0,197.58,197.5,2.341]
[1735657950894,20.0,197.58,197.52,2.341]
[1735657951103,20.0,197.58,197.53,2.341]
[1735657951302,0.09662741,197.59,197.55,2.341]
[1735657951481,7.74802408,197.62,197.57,2.341]
[1735657951900,20.0,197.61,197.57,2.341]
[1735657952577,20.0,197.62,197.57,2.341]
[1735657952898,0.09662741,197.64,197.57,2.341]
[1735657953279,20.0,197.62,197.57,2.341]
[1735657955499,20.0,197.62,197.59,2.341]
[1735657955907,20.0,197.65,197.59,2.341]
[1735657956630,43.776884,197.66,197.59,2.341]
[1735657956926,20.0,197.66,197.61,2.341]
[1735657957095,7.74802408,197.7,197.61,2.341]
[1735657957299,20.0,197.67,197.6,2.341]
[1735657957611,0.09662741,197.68,197.62,2.341]
[1735657958329,0.09662741,197.68,197.66,2.341]
[1735657958495,77.4802408,197.73,197.66,2.341]
[1735657958496,7.74802408,197.73,197.66,2.341]
[1735657958693,7.74802408,197.73,197.67,2.341]
[1735657958896,7.74802408,197.73,197.69,2.341]
[1735657959122,7.74802408,197.73,197.71,2.341]
[1735657959293,7.74802408,197.79,197.7,2.341]
[1735657959498,23.776884,197.78,197.7,2.341]
[1735657959712,20.0,197.76,197.72,2.341]
[1735657959896,7.74802408,197.79,197.74,2.341]
[1735657960095,7.74802408,197.79,197.73,7.7635]
[1735657960293,20.0,197.76,197.74,2.341]
[1735657960719,20.0,197.79,197.73,7.7635]
[1735657960925,0.09662741,197.8,197.73,7.7635]
[1735657961130,0.09662741,197.8,197.75,2.341]
[1735657961314,6.6595,197.91,197.78,2.341]
[1735657961315,7.84465149,197.88,197.78,2.341]
[1735657961618,20.0,197.85,197.79,2.341]
[1735657961820,7.84465149,197.88,197.82,6.1682]
[1735657962028,7.84465149,197.88,197.83,2.341]
[1735657962202,7.74802408,197.92,197.85,2.341]
[1735657962623,7.74802408,197.92,197.87,2.341]
[1735657962809,20.0,197.89,197.88,2.341]
[1735657963220,7.74802408,197.92,197.88,2.341]
[1735657963416,0.09662741,197.97,197.9,2.341]
[1735657963729,0.09662741,197.97,197.93,2.341]
[1735657964028,7.74802408,198.0,197.94,2.341]
[1735657964326,7.74802408,198.08,197.95,2.341]
[1735657964518,12.74802408,198.08,197.94,2.341]
[1735657964918,20.0,198.05,197.96,2.341]
[1735657965508,20.0,198.07,197.96,2.341]
[1735657966027,20.0,198.1,197.96,2.341]
[1735657966531,20.0,198.09,197.96,2.341]
[1735657967109,23.776884,198.08,197.97,2.341]
[1735657967413,0.09662741,198.07,197.97,2.341]
[1735657967617,0.09662741,198.07,197.96,2.341]
[1735657968212,0.09662741,198.07,197.94,2.341]
[1735657968528,20.0,197.94,197.93,1.5953]
[1735657969122,20.0,197.94,197.92,6.1441]
[1735657969625,23.776884,197.93,197.92,6.1441]
[1735657969826,20.0,197.9,197.88,2.341]
[1735657970135,20.0,197.9,197.84,2.341]
[1735657970311,20.0,197.9,197.85,2.341]
[1735657970636,20.0,197.9,197.87,2.341]
[1735657971218,20.0,197.9,197.85,2.341]
[1735657971834,20.0,197.9,197.87,2.341]
[1735657972134,20.0,197.9,197.82,137.6]
[1735657972135,20.0,197.9,197.85,3.9363]
[1735657972736,20.0,197.9,197.87,2.341]
[1735657973429,5.0,197.99,197.85,2.341]
[1735657973607,21.6207,198.0,197.87,2.341]
[1735657973813,20.0,198.0,197.88,2.341]
[1735657974231,23.776884,197.95,197.88,2.341]
[1735657974422,20.0,197.92,197.88,2.341]
[1735657975740,11.1013,198.05,197.9,2.341]
[1735657976038,20.0,198.02,197.91,2.341]
[1735657976447,20.0,197.98,197.91,2.341]
[1735657976637,20.0,197.94,197.92,2.341]
[1735657976944,0.09662741,198.01,197.92,2.341]
[1735657977143,0.09662741,198.01,197.94,2.341]
[1735657977347,0.09662741,198.01,197.95,2.341]
[1735657978243,0.09662741,198.01,197.96,2.341]
[1735657982341,0.09662741,198.06,197.95,2.341]
[1735657982643,43.87351141,198.06,197.95,2.341]
[1735657982844,0.09662741,198.06,197.95,2.341]
[1735657983950,0.09662741,198.06,197.84,5.0]
[1735657983951,0.09662741,198.06,198.0,8.4678]
[1735657984133,6.1682,198.15,198.02,2.341]
[1735657984134,0.09662741,198.11,198.02,2.341]
[1735657984341,0.09662741,198.11,198.05,2.341]
[1735657984720,6.1682,198.2,198.08,2.341]
[1735657985249,21.6414,198.22,198.09,2.341]
[1735657985416,68.15239264,198.25,198.11,2.341]
[1735657985620,23.776884,198.24,198.12,2.341]
[1735657985922,261.03084645,198.28,198.11,8.4678]
[1735657985923,2.659,198.28,198.11,8.4678]
[1735657986129,20.0,198.26,198.14,2.341]
[1735657986338,20.0,198.26,198.15,2.341]
[1735657986545,1.6414,198.29,198.17,2.341]
[1735657986842,1.6414,198.29,198.12,2.341]
[1735657987050,1.6414,198.29,198.11,6.1268]
[1735657987051,20.0,198.25,198.11,6.1268]
[1735657987622,20.0,198.21,198.11,6.1268]
[1735657988145,20.0,198.17,198.11,8.4678]
[1735657988334,20.0,198.13,198.11,6.1268]
[1735657988548,20.0,198.13,198.11,8.4678]
[1735657989041,20.0,198.13,198.11,6.1268]
[1735657990851,20.0,198.13,198.11,8.4678]
[1735657991151,20.0,198.13,198.11,6.1268]
[1735657992664,23.776884,198.12,198.1,1.6461]
[1735657992861,20.0,198.09,198.07,6.5655]
[1735657993737,20.0,198.09,198.07,8.9065]
[1735657993931,5.0,198.25,198.11,2.341]
[1735657994358,25.0,198.25,198.11,2.341]
[1735657994554,20.0,198.19,198.09,2.341]
[1735657994773,23.776884,198.18,198.09,2.341]
[1735657994957,23.776884,198.18,198.11,2.341]
[1735657995452,20.0,198.17,198.13,2.341]
[1735657995866,28.776884,198.27,198.12,2.341]
[1735657996064,20.0,198.2,198.12,2.341]
[1735657996263,23.776884,198.19,198.13,2.341]
[1735657996440,20.0,198.16,198.13,2.341]
[1735657996640,1.6414,198.29,198.15,2.341]
[1735657996966,0.09662741,198.31,198.18,2.341]
[1735657997259,20.0,198.21,198.18,2.341]
[1735657997438,20.0,198.29,198.18,2.341]
[1735657997636,20.0,198.29,198.19,2.341]
[1735657997836,0.09662741,198.31,198.19,2.341]
[1735657998278,0.09662741,198.31,198.21,2.341]
[1735657998789,0.09662741,198.31,198.23,2.341]
[1735657999465,0.09662741,198.31,198.22,2.341]
[1735657999773,26.435884,198.38,198.22,2.341]
[1735657999960,26.435884,198.38,198.23,2.341]
[1735658000167,15.3934,198.4,198.23,2.341]
[1735658000487,5.0,198.41,198.26,8.9065]
[1735658000648,5.0,198.41,198.26,6.5655]
[1735658000848,5.0,198.41,198.28,2.341]
[1735658001067,20.0,198.4,198.26,8.9065]
[1735658001250,5.0,198.41,198.26,8.9065]
[1735658001754,20.0,198.39,198.26,8.9065]
[1735658001947,20.0,198.41,198.27,2.341]
[1735658002147,20.0,198.41,198.29,2.341]
[1735658002368,7.7344,198.45,198.3,2.341]
[1735658002649,7.7344,198.45,198.26,6.5655]
[1735658002650,20.0,198.42,198.32,2.341]
[1735658002852,7.659,198.49,198.34,2.341]
[1735658003173,8.7619,198.5,198.34,2.341]
[1735658003367,2.659,198.49,198.34,2.341]
[1735658003570,2.659,198.49,198.32,2.341]
[1735658003757,2.659,198.49,198.34,2.341]
[1735658003956,20.0,198.41,198.35,2.341]
[1735658004249,20.0,198.45,198.35,2.341]
[1735658004663,23.776884,198.4,198.35,2.341]
[1735658004868,11.1029,198.48,198.36,2.341]
[1735658005177,1.5076,198.51,198.36,3.8791]
[1735658005468,43.776884,198.46,198.36,3.8791]
[1735658005667,11.1029,198.49,198.38,2.341]
[1735658005874,0.09662741,198.5,198.37,8.5396]
[1735658006050,0.09662741,198.5,198.38,2.341]
[1735658006780,23.87351141,198.5,198.37,6.1986]
[1735658006959,20.0,198.41,198.36,1.5381]
[1735658007152,20.0,198.41,198.33,2.341]
[1735658007153,20.0,198.37,198.33,2.341]
[1735658007772,20.0,198.33,198.32,2.341]
[1735658008354,20.0,198.33,198.3,2.341]
[1735658008772,20.0,198.33,198.23,24.5727062]
[1735658008773,20.0,198.33,198.32,2.341]
[1735658009875,6.1986,198.51,198.29,2.341]
[1735658009876,20.0,198.39,198.29,2.341]
[1735658010072,20.0,198.35,198.29,2.341]
[1735658010276,20.0,198.31,198.29,2.341]
[1735658010575,20.0,198.27,198.26,1.5381]
[1735658010763,43.776884,198.27,198.26,1.5381]
[1735658010964,43.776884,198.24,198.23,6.1986]
[1735658011159,20.0,198.21,198.2,1.5381]
[1735658011367,43.776884,198.21,198.18,6.1986]
[1735658011558,43.776884,198.21,198.18,8.5396]
[1735658011960,43.776884,198.28,198.18,6.1986]
[1735658012157,43.776884,198.28,198.14,1.5381]
[1735658012366,43.776884,198.28,198.15,2.341]
[1735658012564,43.776884,198.28,198.14,3.8791]
[1735658012770,43.776884,198.28,198.14,1.5381]
[1735658014096,48.776884,198.28,198.14,1.5381]
[1735658014389,20.0,198.19,198.12,8.5396]
[1735658014681,23.776884,198.14,198.12,6.1986]
[1735658015285,20.0,198.16,198.12,6.1986]
[1735658015473,2.659,198.25,198.12,6.1986]
[1735658015474,20.0,198.24,198.12,8.5396]
[1735658015788,20.0,198.24,198.12,6.1986]
[1735658015981,20.0,198.16,198.12,6.1986]
[1735658016177,20.0,198.13,198.12,6.1986]
[1735658016383,43.776884,198.13,198.12,6.1986]
[1735658016684,43.776884,198.13,197.97,5.0]
[1735658016685,20.0,198.09,198.07,6.1986]
[1735658017066,23.776884,198.08,198.07,6.1986]
[1735658017463,20.0,198.19,198.07,6.1986]
[1735658017675,20.0,198.19,198.08,2.341]
[1735658018069,20.0,198.11,198.08,2.341]
[1735658018284,20.0,198.11,198.09,2.341]
[1735658018483,20.0,198.11,198.08,2.341]
[1735658018795,20.0,198.19,198.08,2.341]
[1735658019093,20.0,198.11,198.07,6.1986]
[1735658019272,43.776884,198.08,198.07,6.1986]
[1735658020179,43.776884,198.08,198.02,7.9964]
[1735658020388,20.0,198.1,198.02,7.9964]
[1735658020582,20.0,198.03,198.02,6.4583]
[1735658020792,43.776884,198.03,198.02,6.4583]
[1735658021170,43.776884,198.03,198.02,8.7993]
[1735658022569,43.776884,198.03,198.02,6.4583]
[1735658023201,43.776884,198.03,197.99,2.341]
[1735658023202,23.776884,198.02,197.99,2.341]
[1735658023501,43.776884,197.99,197.98,2.341]
[1735658023699,23.776884,197.98,197.97,6.4583]
[1735658024199,20.0,198.04,197.97,6.4583]
[1735658024493,23.776884,197.99,197.94,2.341]
[1735658024697,23.776884,197.99,197.95,2.341]
[1735658024698,43.776884,197.96,197.95,2.341]
[1735658027490,20.0,198.04,197.95,2.341]
[1735658027665,20.0,198.04,197.96,2.341]
[1735658027871,20.0,198.04,197.95,2.341]
[1735658027872,20.0,197.96,197.95,2.341]
[1735658028393,20.19353196,230.56,197.95,2.341]
[1735658028394,6.3454,198.12,197.95,2.341]
[1735658028696,4.50909046,198.1,197.98,2.341]
[1735658029016,23.776884,197.99,197.98,2.341]
[1735658029291,6.3454,198.12,198.01,2.341]
[1735658029698,43.776884,198.08,198.01,2.341]
[1735658029868,20.0,198.08,198.01,2.341]
[1735658030267,43.776884,198.08,198.01,2.341]
[1735658030714,43.776884,198.08,197.99,2.341]
[1735658030999,43.776884,198.08,197.98,2.341]
[1735658031676,43.776884,198.08,197.99,2.341]
[1735658031876,43.776884,198.08,197.98,2.341]
[1735658032188,43.776884,198.08,197.99,2.341]
[1735658032898,43.776884,198.08,197.98,2.341]
[1735658033384,43.776884,198.08,197.97,2.341]
[1735658033898,43.776884,198.08,197.98,2.341]
[1735658034093,26.581653,198.12,198.01,2.341]
[1735658034391,6.3454,198.12,198.01,2.341]
[1735658034598,43.776884,198.08,198.01,2.341]
[1735658036689,43.776884,198.08,198.02,2.341]
[1735658037405,43.776884,198.08,198.03,2.341]
[1735658037583,43.776884,198.08,198.02,8.5854]
[1735658038685,43.776884,198.08,198.03,2.341]
[1735658041604,43.776884,198.08,197.98,6.2444]
[1735658041813,43.776884,198.08,197.94,2.341]
[1735658042306,43.776884,198.08,197.95,2.341]
[1735658042485,43.776884,198.08,197.96,2.341]
[1735658042691,43.776884,198.08,197.95,2.341]
[1735658042902,43.776884,198.08,197.93,8.5854]
[1735658043076,20.0,197.99,197.93,6.2444]
[1735658043279,20.0,197.95,197.93,6.2444]
[1735658043500,23.776884,197.94,197.93,6.2444]
[1735658043715,23.776884,197.94,197.93,8.5854]
[1735658043930,43.776884,198.03,197.93,8.5854]
[1735658044093,43.776884,198.03,197.93,6.2444]
[1735658046611,43.776884,198.03,197.92,1.5213]
[1735658047009,43.776884,198.03,197.93,2.341]
[1735658047409,43.776884,198.03,197.92,1.5213]
[1735658049501,43.776884,198.03,197.92,3.8623]
[1735658051299,4.48421987,198.08,197.96,2.341]
[1735658051501,12.14321987,198.08,197.92,3.8623]
[1735658051700,23.776884,198.03,197.92,1.5213]
[1735658051913,23.776884,197.95,197.92,1.5213]
[1735658052204,43.776884,197.93,197.92,1.5213]
[1735658052927,43.776884,197.93,197.92,3.8623]
[1735658053311,43.776884,197.93,197.92,1.5213]
[1735658053512,43.776884,197.93,197.92,3.8623]
[1735658055124,43.776884,197.93,197.92,1.5213]
[1735658055316,20.0,197.9,197.89,2.341]
[1735658055516,43.776884,197.9,197.89,2.341]
[1735658055903,28.776884,198.01,197.88,2.341]
[1735658056118,20.0,197.98,197.88,2.341]
[1735658056330,20.0,197.9,197.88,2.341]
[1735658056518,23.776884,197.89,197.88,2.341]
[1735658056932,43.776884,197.96,197.88,2.341]
[1735658058729,43.776884,197.96,197.86,1.5078]
[1735658058912,43.776884,197.96,197.84,6.0601]
[1735658059632,43.776884,197.96,197.86,2.341]
[1735658060020,43.776884,197.96,197.85,2.341]
[1735658060327,43.776884,197.96,197.84,8.4011]
[1735658060532,51.435884,197.96,197.84,6.0601]
[1735658060909,20.0,197.92,197.84,6.0601]
[1735658061109,20.0,197.91,197.84,6.0601]
[1735658061342,23.776884,197.86,197.84,6.0601]
[1735658061528,23.776884,197.82,197.81,1.5078]